[Event "XII Cracow ICC-A 2024"]
[Site "Krakow"]
[Date "2024.06.22"]
[Round "1.1"]
[White "Moussard, Jules"]
[Black "Rudzinska, Michalina"]
[Result "1/2-1/2"]
[ECO "D35"]
[WhiteElo "2610"]
[BlackElo "2290"]
[Annotator "TA"]
[PlyCount "136"]
[EventDate "2024.06.20"]
[EventType "swiss"]
[EventCountry "POL"]
[SourceTitle "playchess.com"]
[Source "ChessBase"]
[SourceQuality "1"]
[TimeControl "40/5400+30:1800+30"]

{[%evp 31,136,146,173,175,177,189,203,88,75,65,87,41,78,15,69,0,0,0,-25,-37,-37,-46,0,0,-22,-26,-22,-45,0,0,0,0,3,-35,-31,-31,-39,-27,0,-60,0,0,29,29,25,0,0,0,0,0,0,0,0,0,0,0,0,0,45,0,41,0,8,0,0,0,0,0,0,0,0,0,0,0,0,0,0,0,0,0,0,0,0,0,0,0,0,0,0,-5,0,-142,0,0,0,-66,0,0,0,0,0,0,0,0,0,0,0]} 1. c4 {[%emt 0:00:03]} e6 {[%emt 0:00:21]} 2. Nc3 {[%emt 0:00:08]} d5 {[%emt 0:00:20]} 3. d4 {[%emt 0:00:12]} Nf6 {[%emt 0:00:30]} 4. cxd5 {[%emt 0:00:19]} exd5 {[%emt 0:00:13]} 5. Bg5 {[%emt 0:00:10]} Bb4 {[%emt 0:00:30]} 6. e3 {[%emt 0:00:25]} h6 {[%emt 0:00:36]} 7. Bh4 {[%emt 0:00:22]} g5 {[%emt 0:01:22]} 8. Bg3 {[%emt 0:00:07]} h5 {[%emt 0:09:26]} 9. Bd3 {[%emt 0:11:42]} h4 {[%emt 0:03:23]} 10. Be5 {[%emt 0:00:12]} Nc6 {[%emt 0:07:53]} 11. Qb3 {[%emt 0:02:21]} Rh6 {[%emt 0:03:39]} 12. Nge2 {[%emt 0:05:32]} Ng4 {[%emt 0:06:47]} 13. Bg7 {[%emt 0:01:29]} Rd6 {[%emt 0:01:39]} 14. h3 {[%emt 0:02:00]} Nf6 {[%emt 0:00:55]} 15. O-O-O {[%emt 0:01:21]} Be6 {[%emt 0:06:09]} 16. f4 {[%emt 0:09:47]} Bxc3 {[%emt 0:17:31]} 17. Nxc3 {[%emt 0:00:17]} (17. Qxc3 Qe7 $11 (17... Ne4 18. Bxe4 dxe4 19. d5 $16)) 17... Nh5 {[%emt 0:00:48] [#]} 18. Bh6 $1 {[%emt 0:03:22]} gxf4 {[%emt 0:02:07]} 19. Nb5 {[%emt 0:00:08]} (19. Qxb7 $2 Rb8 20. Qa6 Bc8 $19) (19. exf4 $18 {is the precise move to win. Threatens to win with Rhe1.} Qd7 20. Nb5 (20. Qxb7 Rb8 $16)) 19... fxe3 $16 {[%emt 0:04:03]} 20. Nxd6+ {[%emt 0:01:10]} (20. Qa3 {feels hotter.} Rc8 21. Rhe1 a6 22. Nxd6+ Qxd6 23. Qb3) 20... Qxd6 {[%emt 0:00:09]} 21. Bxe3 {[%emt 0:03:08]} (21. Qxb7 $2 Rb8 22. Qa6 Bc8 $19 (22... Nxd4 $2 23. Qxd6 cxd6 24. Bxe3 $18)) (21. Bg5 $16) 21... O-O-O {[%emt 0:00:50]} 22. Qa3 {[%emt 0:05:26]} ({Better is} 22. Rhf1 $16) 22... Qg3 $11 {[%emt 0:04:36]} 23. Be2 {[%emt 0:15:42]} (23. Bb5 $14) 23... Nf4 $11 {[%emt 0:02:11]} 24. Bxf4 {[%emt 0:00:16]} Qxf4+ {[%emt 0:00:06]} 25. Rd2 {[%emt 0:05:05]} Nxd4 {[%emt 0:01:39]} 26. Bd3 {[%emt 0:00:16]} Rd6 {[%emt 0:06:49]} 27. Rf1 {[%emt 0:01:45]} Rc6+ {[%emt 0:04:33]} 28. Kd1 {[%emt 0:00:05]} Qh6 {[%emt 0:01:03]} 29. Rff2 {[%emt 0:10:12]} Qh5+ {[%emt 0:04:21]} 30. Be2 {[%emt 0:00:09]} Nxe2 {[%emt 0:00:22]} 31. Rfxe2 {[%emt 0:00:51]} Qf5 {[%emt 0:02:47]} 32. Ke1 {[%emt 0:08:38]} Rc1+ {[%emt 0:01:34]} 33. Rd1 {[%emt 0:00:11]} Rxd1+ {[%emt 0:01:24]} 34. Kxd1 {[%emt 0:00:04]} d4 {[%emt 0:04:55]} 35. Qf8+ {[%emt 0:02:05]} Kd7 {[%emt 0:00:04]} 36. Qb4 $1 {[%emt 0:00:12]} Qb1+ {[%emt 0:01:52]} (36... Bxa2 $2 {perishes.} 37. Qa4+ (37. Qxd4+ Bd5 $16) 37... b5 38. Qxa2 $18) 37. Kd2 {[%emt 0:00:04]} d3 {[%emt 0:00:59]} 38. Qd4+ {[%emt 0:02:09]} Kc8 {[%emt 0:00:21]} 39. Qxd3 {[%emt 0:05:21]} Qxb2+ {[%emt 0:00:05]} ({But not} 39... Qxa2 $6 40. Ke1 $16) 40. Ke1 {[%emt 0:00:40]} Qc1+ {[%emt 0:00:35]} 41. Kf2 {[%emt 0:30:08]} Qf4+ {[%emt 0:07:36]} 42. Qf3 {[%emt 0:00:00]} Qd6 {[%emt 0:01:48]} 43. Qe4 {[%emt 0:00:00]} Qc5+ {[%emt 0:02:23]} 44. Re3 {[%emt 0:00:00]} Qe7 {[%emt 0:03:13]} 45. a3 {[%emt 0:00:00]} Kb8 {[%emt 0:01:42]} 46. Qf4 {[%emt 0:00:00]} b6 {[%emt 0:02:14]} 47. g3 {[%emt 0:00:00]} hxg3+ {[%emt 0:00:14]} 48. Kxg3 {[%emt 0:00:00]} Qc5 {[%emt 0:00:52]} 49. h4 {[%emt 0:00:00]} a5 {[%emt 0:07:41]} 50. a4 {[%emt 0:00:00]} Kc8 {[%emt 0:01:43]} 51. Qe4 {[%emt 0:00:00]} Qd6+ {[%emt 0:01:21]} 52. Kf2 {[%emt 0:00:00]} Qh2+ {[%emt 0:00:57]} 53. Ke1 {[%emt 0:00:00]} Qg1+ {[%emt 0:00:33]} 54. Kd2 {[%emt 0:00:00]} Qh2+ {[%emt 0:00:47]} 55. Kc3 {[%emt 0:00:00]} Kb8 $1 {[%emt 0:01:22]} 56. Rd3 {[%emt 0:00:00]} Ka7 {[%emt 0:01:01]} 57. Re3 {[%emt 0:00:00]} Kb8 {[%emt 0:01:21]} 58. Re2 {[%emt 0:00:00]} Qg3+ {[%emt 0:00:24]} 59. Kd2 {[%emt 0:00:00]} Qd6+ {[%emt 0:00:12]} 60. Ke1 {[%emt 0:00:00]} Qg3+ {[%emt 0:00:12]} 61. Rf2 {[%emt 0:00:00] [#]} (61. Kd2 $11 {was the only way to keep the balance.}) 61... Qc3+ {[%emt 0:00:48]} (61... Bg4 $1 $17 62. Qf4 Qxh4) 62. Rd2 $1 $11 {[%emt 0:00:00]} Qg3+ {[%emt 0:00:13]} 63. Kd1 {[%emt 0:00:00]} ({White should play} 63. Rf2 $11) 63... Bb3+ {[%emt 0:01:59]} (63... Bg4+ $15 64. Kc2 Qxh4) 64. Ke2 $11 {[%emt 0:00:00]} Qh2+ {[%emt 0:00:12]} 65. Ke3 {[%emt 0:01:18]} Qg3+ {[%emt 0:00:38]} 66. Ke2 {[%emt 0:00:07]} Qh2+ {[%emt 0:00:04]} 67. Ke3 {[%emt 0:01:29]} Qg3+ {[%emt 0:00:05]} 68. Ke2 {[%emt 0:00:02]} Qh2+ {[%emt 0:00:04]} 1/2-1/2

[Event "XII Cracow ICC-A 2024"]
[Site "Krakow"]
[Date "2024.06.22"]
[Round "1.2"]
[White "Arnav Maheshwari"]
[Black "Fier, Alexandr"]
[Result "0-1"]
[ECO "E46"]
[WhiteElo "2290"]
[BlackElo "2602"]
[Annotator "TA"]
[PlyCount "52"]
[EventDate "2024.06.20"]
[EventType "swiss"]
[EventCountry "POL"]
[SourceTitle "playchess.com"]
[Source "ChessBase"]
[SourceQuality "1"]
[TimeControl "40/5400+30:1800+30"]

{[%evp 13,52,0,0,0,0,0,7,-11,18,-39,-39,-83,-8,-6,-6,-14,0,-175,-175,-152,-184,-171,-165,-185,-200,-180,-95,-84,-40,-124,-110,-263,-141,-964,-985,-1031,-1034,-29996,-29997,-29997,-29998]} 1. d4 {[%emt 0:00:24]} Nf6 {[%emt 0:00:03]} 2. c4 {[%emt 0:00:11]} e6 {[%emt 0:00:04]} 3. Nc3 {[%emt 0:00:11]} Bb4 {[%emt 0:00:05]} 4. e3 {[%emt 0:00:12]} O-O {[%emt 0:00:09]} 5. Bd2 {[%emt 0:00:07]} d5 {[%emt 0:00:35]} 6. Nf3 {[%emt 0:00:27]} b6 {[%emt 0:00:06]} 7. cxd5 {[%emt 0:00:10]} exd5 {[%emt 0:00:04]} 8. Ne5 {[%emt 0:03:53]} Bd6 {[%emt 0:02:09]} 9. Bd3 {[%emt 0:04:17]} Re8 {[%emt 0:00:07]} 10. Bb5 {[%emt 0:08:39] The position is equal.} Re6 {[%emt 0:04:02]} 11. Nc6 {[%emt 0:05:30]} (11. f4 $11) 11... Qf8 $1 $15 {[%emt 0:05:00]} 12. Qa4 {[%emt 0:04:58]} a6 {[%emt 0:05:03]} (12... Bb7 $17 {White must now prevent ...a6.} 13. Nxb8 Qxb8) 13. Nxb8 $11 {[%emt 0:03:55]} Rxb8 {[%emt 0:00:04]} 14. Bc6 {[%emt 0:05:47]} b5 {[%emt 0:07:42]} 15. Qb3 {[%emt 0:02:20]} (15. Qc2 $1 $11 {and White is okay.}) 15... Rb6 $1 $36 {[%emt 0:06:30][%mdl 2048] Black has strong initiative.} 16. Bxd5 {[%emt 0:03:45] [#]} b4 $1 {[%emt 0:00:12]} 17. Na4 {[%emt 0:02:03]} Nxd5 {[%emt 0:00:05]} 18. Qxd5 {[%emt 0:00:37]} Bb7 {[%emt 0:00:04]} 19. Qb3 {[%emt 0:01:13]} Rb5 {[%emt 0:00:10]} (19... Bxg2 $19 20. Rg1 Rg6 21. Nxb6 Bd5 (21... cxb6 22. Rc1 $11) 22. Nxd5 Rxg1+ 23. Ke2 Rxa1 24. Nxb4 Qb8 (24... Bxh2 $2 25. Nxa6 Qc8 26. Nc5 $19)) 20. f3 $17 {[%emt 0:02:44][%cal Oa4c5]} Qe7 {[%emt 0:01:34] Black is more active.} 21. Nc5 {[%emt 0:05:36]} Qh4+ {[%emt 0:03:02]} (21... Rxc5 $6 22. dxc5 Qh4+ 23. Kf1 Bxc5 24. Rc1 $11) 22. Ke2 $2 {[%emt 0:08:42]} (22. g3 $17 Qh5 (22... Qxd4 $2 {is the wrong capture.} 23. Nxe6 Qe5 24. Nd4 $18) (22... Bxg3+ 23. Ke2 $15) 23. Nxb7 Qxf3 24. Rf1 Qxb7 25. O-O-O) 22... Rg6 {[%emt 0:02:15]} ({Black should try} 22... Bxc5 $19 23. dxc5 Rg6 (23... Rxc5 24. Qxb4 Qxb4 25. Bxb4 $15)) 23. g3 $2 {[%emt 0:03:21][%mdl 8192] [#] Loses the game.} (23. Nxb7 $17 Rxg2+ 24. Kd3 Rxb7 25. Rhg1 Qxh2 (25... Rxh2 26. Qd5 $17) 26. Rxg2 Qxg2 27. Qd5) 23... Bxf3+ $1 $19 {[%emt 0:01:17][%mdl 512]} 24. Kxf3 {[%emt 0:05:08]} (24. Kd3 Qg4) 24... Qg4+ {[%emt 0:00:10]} 25. Kg2 {[%emt 0:00:07]} Qe2+ {[%emt 0:00:24]} 26. Kg1 {[%emt 0:00:05]} Bxg3 {[%emt 0:00:11] Weighted Error Value: White=0.97/Black=0.20 (precise) .  Loses game:     	White=2     	---        Mistake:       	White=3     	Black=3      Inaccurate:     	White=1     	Black=2      OK:         	White=5     	Black=3      Best:        	White=1     	Black=2      Strong:       	---       	Black=3      Brilliant:      	---       	Black=1} 0-1

[Event "XII Cracow ICC-A 2024"]
[Site "Krakow"]
[Date "2024.06.22"]
[Round "1.3"]
[White "Gumularz, Szymon"]
[Black "Rudolf, Michal"]
[Result "1-0"]
[ECO "A11"]
[WhiteElo "2593"]
[BlackElo "2287"]
[Annotator "TA"]
[PlyCount "55"]
[EventDate "2024.06.20"]
[EventType "swiss"]
[EventCountry "POL"]
[SourceTitle "playchess.com"]
[Source "ChessBase"]
[SourceQuality "1"]
[TimeControl "40/5400+30:1800+30"]

{[%evp 15,55,9,12,3,16,12,13,15,15,10,18,10,16,7,8,5,10,-10,-2,-16,25,-8,0,-7,79,83,89,93,139,130,120,129,184,184,315,318,314,309,428,437,435,411]} 1. c4 {[%emt 0:00:03]} c6 {[%emt 0:00:32]} 2. Nf3 {[%emt 0:00:20]} d5 {[%emt 0:00:06]} 3. g3 {[%emt 0:00:33]} Bg4 {[%emt 0:00:37]} 4. Ne5 {[%emt 0:01:35]} Be6 {[%emt 0:00:27]} 5. d4 {[%emt 0:01:10]} Nd7 {[%emt 0:01:38]} 6. Nf3 {[%emt 0:01:35]} Bg4 {[%emt 0:05:41]} 7. Bg2 {[%emt 0:01:08]} e6 {[%emt 0:00:12]} 8. O-O {[%emt 0:00:11]} Ngf6 {[%emt 0:01:00]} 9. h3 {[%emt 0:00:30]} Bxf3 {[%emt 0:02:27]} 10. Bxf3 {[%emt 0:00:06]} Bd6 11. Qd3 {[%emt 0:01:28] The position is equal.} O-O {[%emt 0:02:00]} 12. Nc3 {[%emt 0:01:09]} Re8 {[%emt 0:03:52]} 13. Bg2 {[%emt 0:01:15]} h6 {[%emt 0:03:51]} 14. Rd1 {[%emt 0:01:39]} Qe7 {[%emt 0:05:09]} 15. b3 {[%emt 0:15:07]} Rad8 {[%emt 0:05:02]} 16. c5 {[%emt 0:01:34]} Bc7 {[%emt 0:00:32]} 17. f4 {[%emt 0:00:06]} b5 {[%emt 0:06:21]} (17... e5 $5 18. fxe5 (18. dxe5 Nh5 $14) 18... Nxe5 19. dxe5 Bxe5 $11) 18. cxb6 {[%emt 0:03:48]} Bxb6 {[%emt 0:00:59]} 19. Na4 {[%emt 0:00:28]} c5 {[%emt 0:10:46]} (19... Bc7 $11) 20. Ba3 $16 {[%emt 0:01:43]} Rc8 {[%emt 0:01:14]} 21. Rac1 {[%emt 0:04:11]} Rc6 {[%emt 0:06:52]} (21... Bc7 $142) 22. Kh2 {[%emt 0:04:29]} Rec8 {[%emt 0:01:11]} 23. Rc2 {[%emt 0:05:26] White is more active.} R6c7 {[%emt 0:17:13]} (23... Qe8 $16) 24. Rdc1 $18 {[%emt 0:01:14]} Ne8 {[%emt 0:00:22]} (24... Qd6 {is a better defense.} 25. dxc5 Nxc5) 25. dxc5 {[%emt 0:04:15]} Nxc5 {[%emt 0:00:39]} 26. Nxc5 {[%emt 0:02:46]} Bxc5 {[%emt 0:00:06]} 27. Rxc5 {[%emt 0:00:08]} Rxc5 {[%emt 0:00:05]} 28. Qd4 {[%emt 0:00:19] Prevents Nf6.   Weighted Error Value: White=0.05 (flawless) /Black=0.33.  Mistake:       	---       	Black=4      Inaccurate:     	White=1     	Black=2      OK:         	White=5     	Black=5      Best:        	White=2     	Black=1} 1-0

[Event "XII Cracow ICC-A 2024"]
[Site "Krakow"]
[Date "2024.06.22"]
[Round "1.4"]
[White "Srinath, Rao S.V."]
[Black "Samunenkov, Ihor"]
[Result "1/2-1/2"]
[ECO "C47"]
[WhiteElo "2278"]
[BlackElo "2532"]
[Annotator "RC"]
[PlyCount "111"]
[EventDate "2024.06.20"]
[EventType "swiss"]
[EventCountry "POL"]
[SourceTitle "playchess.com"]
[Source "ChessBase"]
[SourceQuality "1"]
[TimeControl "40/5400+30:1800+30"]

1. e4 {[%emt 0:00:03]} e5 {[%emt 0:00:11]} 2. Nf3 {[%emt 0:01:49]} Nf6 {[%emt 0:00:11]} 3. Nc3 {[%emt 0:00:37]} Nc6 {[%emt 0:00:10]} 4. a3 {[%emt 0:00:03]} d5 {[%emt 0:01:23]} 5. Bb5 {[%emt 0:00:06]} Nxe4 {[%emt 0:16:53]} 6. Qe2 {[%emt 0:00:13]} Nxc3 {[%emt 0:21:32]} 7. Qxe5+ {[%emt 0:00:06]} Be7 {[%emt 0:00:19]} 8. Qxc3 {[%emt 0:00:41]} O-O {[%emt 0:02:30]} 9. Bxc6 {[%emt 0:00:56]} bxc6 {[%emt 0:08:11]} 10. d4 {[%emt 0:00:19]} Ba6 {[%emt 0:08:23]} 11. Qxc6 {[%emt 0:03:44]} Qc8 {[%emt 0:06:52]} 12. Bf4 {[%emt 0:07:44]} Bb7 {[%emt 0:10:57]} 13. Qc3 {[%emt 0:04:54]} Qg4 {[%emt 0:08:00]} 14. Be5 {[%emt 0:03:29]} Qe4+ {[%emt 0:01:46]} 15. Kf1 {[%emt 0:08:06]} Rfe8 {[%emt 0:04:01]} 16. Re1 {[%emt 0:02:53]} Qf5 {[%emt 0:01:00]} 17. Kg1 {[%emt 0:02:42]} Rac8 {[%emt 0:01:57]} 18. h3 {[%emt 0:04:56]} c5 {[%emt 0:01:05]} 19. Qd2 {[%emt 0:01:46]} c4 {[%emt 0:01:25]} 20. Kh2 {[%emt 0:06:39]} c3 {[%emt 0:00:43]} 21. bxc3 {[%emt 0:00:05]} Bxa3 {[%emt 0:00:15]} 22. Ra1 {[%emt 0:02:20]} Bb2 {[%emt 0:00:07]} 23. Rxa7 {[%emt 0:00:05]} Bxc3 {[%emt 0:00:15]} 24. Qe3 {[%emt 0:01:07]} f6 {[%emt 0:01:45]} 25. Rxb7 {[%emt 0:01:24]} fxe5 {[%emt 0:00:05]} 26. Nxe5 {[%emt 0:03:03]} Bxd4 {[%emt 0:01:11]} 27. Qxd4 {[%emt 0:00:05]} Qxe5+ {[%emt 0:00:04]} 28. Qxe5 {[%emt 0:00:03]} Rxe5 {[%emt 0:00:05]} 29. Ra1 {[%emt 0:02:49]} h5 {[%emt 0:01:20]} 30. Raa7 {[%emt 0:02:50]} Rg5 {[%emt 0:00:08]} 31. Rc7 {[%emt 0:02:57]} Rf8 {[%emt 0:01:11]} 32. f3 {[%emt 0:00:56]} Rf4 {[%emt 0:00:07]} 33. Ra8+ {[%emt 0:07:24]} Kh7 {[%emt 0:00:27]} 34. Re8 {[%emt 0:00:26]} h4 {[%emt 0:00:55]} 35. Rce7 {[%emt 0:02:42]} Rd4 {[%emt 0:01:21]} 36. Re5 {[%emt 0:01:43]} Rxe5 {[%emt 0:00:20]} 37. Rxe5 {[%emt 0:00:05]} Kh6 {[%emt 0:00:06]} 38. Kg1 {[%emt 0:03:35]} Rd2 {[%emt 0:00:22]} 39. Kf1 {[%emt 0:00:34]} Rxc2 {[%emt 0:00:31]} 40. Rxd5 {[%emt 0:00:04]} g5 {[%emt 0:00:28]} 41. Rd6+ {[%emt 0:32:00]} Kg7 {[%emt 0:31:12]} 42. Re6 {[%emt 0:04:32]} Ra2 {[%emt 0:00:16]} 43. Re2 {[%emt 0:00:22]} Ra3 {[%emt 0:00:15]} 44. Kf2 {[%emt 0:01:09]} Kf6 {[%emt 0:00:07]} 45. Rb2 {[%emt 0:01:34]} Kf5 {[%emt 0:00:26]} 46. Rb5+ {[%emt 0:03:56]} Kf4 {[%emt 0:00:12]} 47. Rb4+ {[%emt 0:00:05]} Kf5 {[%emt 0:00:06]} 48. Re4 {[%emt 0:03:16]} Ra2+ {[%emt 0:00:13]} 49. Re2 {[%emt 0:01:23]} Ra3 {[%emt 0:00:15]} 50. Rb2 {[%emt 0:03:18]} Kf4 {[%emt 0:00:14]} 51. Rb4+ {[%emt 0:01:14]} Kf5 {[%emt 0:00:08]} 52. Rg4 {[%emt 0:00:38]} Ra2+ {[%emt 0:00:51]} 53. Ke3 {[%emt 0:00:06]} Ra3+ {[%emt 0:00:30]} 54. Kf2 {[%emt 0:02:15]} Ra2+ {[%emt 0:00:07]} 55. Ke3 {[%emt 0:00:17]} Ra3+ {[%emt 0:00:07]} 56. Kf2 {[%emt 0:00:08]} 1/2-1/2

[Event "XII Cracow ICC-A 2024"]
[Site "Krakow"]
[Date "2024.06.22"]
[Round "1.5"]
[White "Kelires, Andreas"]
[Black "Lohia, Sohum"]
[Result "1/2-1/2"]
[ECO "C50"]
[WhiteElo "2515"]
[BlackElo "2270"]
[Annotator "TA"]
[PlyCount "117"]
[EventDate "2024.06.20"]
[EventType "swiss"]
[EventCountry "POL"]
[SourceTitle "playchess.com"]
[Source "ChessBase"]
[SourceQuality "1"]
[TimeControl "40/5400+30:1800+30"]

{[%evp 10,117,19,8,15,6,13,16,6,17,15,14,0,0,0,0,0,-5,0,-2,0,0,8,12,16,6,9,16,15,0,10,10,11,7,8,13,13,7,26,24,27,25,27,40,29,38,43,45,31,34,36,28,53,38,55,58,133,126,142,146,144,148,142,145,158,150,157,164,158,158,162,154,154,151,156,81,81,81,81,56,81,45,45,33,54,33,33,0,0,0,0,0,0,0,0,0,0,0,0,0,0,0,0,0,0,0,0,0,0,0]} 1. e4 {[%emt 0:00:03]} e5 {[%emt 0:00:10]} 2. Nf3 {[%emt 0:00:06]} Nc6 {[%emt 0:00:08]} 3. Bc4 {[%emt 0:00:08]} Nf6 {[%emt 0:00:12]} 4. d3 {[%emt 0:00:09]} Bc5 {[%emt 0:00:12]} 5. O-O {[%emt 0:00:23]} d6 {[%emt 0:00:25]} 6. c3 {[%emt 0:00:16]} a5 {[%emt 0:00:19]} 7. Re1 {[%emt 0:00:37]} O-O {[%emt 0:00:27]} 8. h3 {[%emt 0:00:43]} h6 {[%emt 0:00:17]} 9. Nbd2 {[%emt 0:00:14]} Be6 {[%emt 0:00:19]} 10. Bb5 {[%emt 0:01:03]} Qb8 {[%emt 0:00:29]} 11. Bxc6 {[%emt 0:03:44]} bxc6 {[%emt 0:00:16]} 12. d4 {[%emt 0:00:08]} exd4 {[%emt 0:01:04]} 13. cxd4 {[%emt 0:00:32]} Bb6 {[%emt 0:00:16]} 14. Qc2 {[%emt 0:00:38]} Qa7 {[%emt 0:14:04]} 15. Qxc6 {[%emt 0:23:56]} Bxd4 {[%emt 0:00:55]} 16. Nxd4 {[%emt 0:00:23]} Qxd4 {[%emt 0:00:09]} 17. Nf3 {[%emt 0:11:22]} Qc4 {[%emt 0:04:30]} 18. Qxc4 {[%emt 0:02:12]} Bxc4 {[%emt 0:00:17]} 19. Bd2 {[%emt 0:05:44]} Rfe8 {[%emt 0:08:54]} 20. e5 {[%emt 0:02:06]} dxe5 {[%emt 0:01:47]} 21. Nxe5 {[%emt 0:00:07]} Bd5 {[%emt 0:02:23]} 22. f3 {[%emt 0:00:14]} a4 {[%emt 0:02:36]} 23. a3 {[%emt 0:02:33]} Re6 {[%emt 0:05:49]} 24. Rac1 {[%emt 0:05:12]} Rae8 {[%emt 0:10:33]} 25. Nd3 {[%emt 0:02:10]} Rxe1+ {[%emt 0:14:40]} 26. Bxe1 {[%emt 0:00:09]} c6 {[%emt 0:01:26]} 27. Nc5 {[%emt 0:03:05]} Ra8 {[%emt 0:02:27]} 28. Rd1 {[%emt 0:05:59]} Bc4 {[%emt 0:01:00]} 29. Rd4 {[%emt 0:08:56]} Bb5 {[%emt 0:00:25]} 30. Bd2 {[%emt 0:02:34]} Nd5 {[%emt 0:01:59]} 31. Ne4 {[%emt 0:00:13]} Rd8 {[%emt 0:03:52]} 32. Nc3 {[%emt 0:04:13]} Rd7 {[%emt 0:03:40]} (32... Rb8 $1 $14) 33. Nxa4 $16 {[%emt 0:01:58] White is more active.} Bxa4 {[%emt 0:00:12]} 34. Rxa4 {[%emt 0:00:01][%mdl 4096] Endgame. KRB-KRN} Nb6 {[%emt 0:00:21]} 35. Rb4 {[%emt 0:01:01]} Rxd2 {[%emt 0:00:16]} 36. Rxb6 {[%emt 0:00:04][%cal Oa3a4] KR-KR} c5 {[%emt 0:00:22]} 37. Rb8+ {[%emt 0:05:58]} Kh7 {[%emt 0:00:09]} 38. Rb5 {[%emt 0:00:02]} c4 {[%emt 0:02:01]} 39. a4 {[%emt 0:01:37]} Rc2 {[%emt 0:01:06]} 40. a5 {[%emt 0:00:29]} c3 {[%emt 0:00:36]} 41. bxc3 {[%emt 0:30:05]} Rxc3 {[%emt 0:30:08]} 42. a6 {[%emt 0:05:26]} (42. Kf2 $142) 42... Ra3 {[%emt 0:00:26]} 43. Rb6 {[%emt 0:03:31]} h5 {[%emt 0:02:39]} 44. Rc6 {[%emt 0:00:00]} f6 {[%emt 0:00:00]} 45. Kf2 {[%emt 0:00:00]} h4 {[%emt 0:00:00]} 46. Ke2 {[%emt 0:00:00] [#] And now Kd2 would win.} Kg6 {[%emt 0:00:00]} 47. Kd2 {[%emt 0:00:00] Kc1 would now be deadly.} Kf5 {[%emt 0:00:00]} 48. Kc2 {[%emt 0:00:00] Kb2 is the strong threat.} (48. Rc7 {simplifies} Rxa6 49. Rxg7 Ke5 50. Ke3) 48... Kf4 {[%emt 0:00:00] The position is equal.} 49. Rc4+ {[%emt 0:00:00]} (49. Kb2 $5 Ra5 $8 50. Rc4+ Kg3 51. Rg4+ Kh2 52. Rxg7 Rxa6 53. Rg6 $11 (53. Rg4 f5 $11)) 49... Kg3 {[%emt 0:00:00]} 50. Rg4+ {[%emt 0:00:00]} Kh2 {[%emt 0:00:00]} 51. Rxg7 {[%emt 0:00:00] [#] Black must now prevent a7.} Rxa6 {[%emt 0:00:00]} 52. Kd3 {[%emt 0:00:43]} Ra2 {[%emt 0:00:00]} 53. Rg4 {[%emt 0:00:11]} Rxg2 {[%emt 0:00:00]} 54. Rxh4 {[%emt 0:00:06]} Kg3 {[%emt 0:00:00][%csl LRf3,LRh4]} 55. Rg4+ {[%emt 0:00:13]} Kxf3 {[%emt 0:00:11]} 56. Rxg2 {[%emt 0:00:20]} Kxg2 {[%emt 0:00:04]} 57. Ke4 {[%emt 0:00:08] h4 would kill now.} f5+ {[%emt 0:00:06]} 58. Kxf5 {[%emt 0:00:03]} Kxh3 {[%emt 0:00:36]} 59. Ke4 {Black escapes into a draw.   Weighted Error Value: White=0.06 (flawless) /Black=0.05 (flawless) .  Mistake:       	White=1     	Black=1      Inaccurate:     	White=2     	---        OK:         	White=26    	Black=27     Best:        	White=1     	Black=2} 1/2-1/2

[Event "XII Cracow ICC-A 2024"]
[Site "Krakow"]
[Date "2024.06.22"]
[Round "1.6"]
[White "Donker, Roel"]
[Black "Vetoshko, Volodymyr"]
[Result "1/2-1/2"]
[ECO "D37"]
[WhiteElo "2270"]
[BlackElo "2505"]
[Annotator "RC"]
[PlyCount "107"]
[EventDate "2024.06.20"]
[EventType "swiss"]
[EventCountry "POL"]
[SourceTitle "playchess.com"]
[Source "ChessBase"]
[SourceQuality "1"]
[TimeControl "40/5400+30:1800+30"]

1. d4 {[%emt 0:00:04]} Nf6 {[%emt 0:00:58]} 2. c4 {[%emt 0:00:10]} e6 {[%emt 0:00:45]} 3. Nf3 {[%emt 0:00:09]} d5 {[%emt 0:00:52]} 4. Nc3 {[%emt 0:00:16]} a6 {[%emt 0:03:00]} 5. c5 {[%emt 0:00:55]} Nc6 {[%emt 0:09:58]} 6. h3 {[%emt 0:04:18]} Ne4 {[%emt 0:17:50]} 7. Bf4 {[%emt 0:00:53]} g5 {[%emt 0:01:48]} 8. Bh2 {[%emt 0:03:44]} Bg7 {[%emt 0:00:27]} 9. e3 {[%emt 0:01:03]} f5 {[%emt 0:01:32]} 10. Bd3 {[%emt 0:09:37]} O-O {[%emt 0:02:05]} 11. O-O {[%emt 0:02:01]} Bd7 {[%emt 0:06:55]} 12. Ne2 {[%emt 0:05:21]} Be8 {[%emt 0:02:04]} 13. Rc1 {[%emt 0:14:05]} Bh5 {[%emt 0:02:43]} 14. Ne5 {[%emt 0:01:10]} Bxe5 {[%emt 0:08:18]} 15. Bxe5 {[%emt 0:07:40]} Nxe5 {[%emt 0:00:26]} 16. dxe5 {[%emt 0:00:03]} Qe7 {[%emt 0:01:50]} 17. b4 {[%emt 0:02:46]} Bxe2 {[%emt 0:20:20]} 18. Qxe2 {[%emt 0:01:12]} a5 {[%emt 0:00:36]} 19. a3 {[%emt 0:03:12]} axb4 {[%emt 0:00:46]} 20. axb4 {[%emt 0:00:02]} Qg7 {[%emt 0:00:32]} 21. Qb2 {[%emt 0:04:54]} g4 {[%emt 0:00:12]} 22. hxg4 {[%emt 0:16:52]} Qxg4 {[%emt 0:00:17]} 23. c6 b6 {[%emt 0:01:01]} 24. Ra1 {[%emt 0:03:10]} Rae8 {[%emt 0:06:27]} 25. Qd4 {[%emt 0:06:40]} Qg7 {[%emt 0:01:20]} 26. Ra2 {[%emt 0:09:35]} Re7 {[%emt 0:03:06]} 27. Rfa1 {[%emt 0:00:23]} Ng5 {[%emt 0:00:39]} 28. Kf1 {[%emt 0:01:24]} Qh6 {[%emt 0:01:59]} 29. g3 {[%emt 0:02:35]} Qh1+ {[%emt 0:02:53]} 30. Ke2 {[%emt 0:00:01]} Qh5+ {[%emt 0:00:14]} 31. Kf1 {[%emt 0:00:13]} Nf3 {[%emt 0:00:51]} 32. Qf4 {[%emt 0:00:07]} Rg7 {[%emt 0:00:11]} 33. Ra8 {[%emt 0:01:01]} Qh1+ {[%emt 0:03:29]} 34. Ke2 {[%emt 0:00:04]} Ng1+ {[%emt 0:00:06]} 35. Kd2 {[%emt 0:00:48]} Rg4 {[%emt 0:00:05]} 36. Rxf8+ {[%emt 0:01:16]} Kxf8 {[%emt 0:00:02]} 37. Rxg1 {[%emt 0:00:16]} Qxg1 {[%emt 0:01:46]} 38. Qh6+ {[%emt 0:00:05]} Rg7 {[%emt 0:00:30]} 39. Ke2 {[%emt 0:01:19]} Qa1 {[%emt 0:00:33]} 40. Qxe6 {[%emt 0:00:22]} Qb2+ {[%emt 0:00:30]} 41. Kf1 {[%emt 0:04:19]} Re7 {[%emt 0:14:47]} 42. Qf6+ {[%emt 0:09:06]} Rf7 {[%emt 0:00:19]} 43. Qd8+ {[%emt 0:02:07]} Kg7 {[%emt 0:00:02]} 44. Qxd5 {[%emt 0:00:15]} Qxb4 {[%emt 0:05:27]} 45. e6 {[%emt 0:03:59]} Re7 {[%emt 0:00:27]} 46. Bxf5 {[%emt 0:03:19]} Qc5 {[%emt 0:05:47]} 47. Qe4 {[%emt 0:01:30]} Kg8 {[%emt 0:00:48]} 48. g4 {[%emt 0:02:02]} b5 {[%emt 0:00:23]} 49. Qf4 {[%emt 0:03:11]} b4 {[%emt 0:02:32]} 50. Qg5+ {[%emt 0:00:05]} Kf8 {[%emt 0:00:48]} 51. Qf6+ {[%emt 0:00:32]} Kg8 {[%emt 0:00:05]} 52. Qg5+ {[%emt 0:02:16]} Kf8 {[%emt 0:00:07]} 53. Qf6+ {[%emt 0:00:02]} Kg8 {[%emt 0:00:05]} 54. Qg5+ {[%emt 0:04:03]} 1/2-1/2